bitfinex/quotes_ETHUSD_20220118
["timestamp","ask_amount","ask_price","bid_price","bid_amount"]
[1642539990553,0.32427215,3121.7,3121.1,2.72385569]
[1642539990753,0.32427215,3121.7,3121.1,2.72101358]
[1642539990992,0.32427215,3121.7,3121.2,0.00227369]
[1642539991694,0.32427215,3121.7,3121.3,1.1382995]
[1642539992093,0.32427215,3121.7,3121.4,0.00113684]
[1642540001704,0.128,3122.1,3121.4,0.80212684]
[1642540001902,0.128,3122.3,3121.5,3.22445178]
[1642540002101,0.0022737,3122.0,3121.5,1.4767]
[1642540002552,0.00170527,3121.9,3121.5,1.4767]
[1642540002949,0.00113685,3121.8,3121.6,0.80091]
[1642540003150,0.00113685,3121.8,3121.7,5.678]
[1642540003350,0.00454739,3122.4,3121.7,5.678]
[1642540003549,0.00113685,3121.8,3121.7,5.678]
[1642540003750,0.00397897,3122.3,3121.7,5.678]
[1642540003951,0.00113685,3121.8,3121.7,8.00079339]
[1642540004149,0.00341054,3122.2,3121.7,10.66957188]
[1642540004350,0.128,3122.7,3121.8,1.36342036]
[1642540004550,0.128,3122.7,3121.9,3.43263176]
[1642540004750,0.00568424,3122.6,3121.9,0.80085]
[1642540004950,0.128,3122.5,3121.9,0.80085]
[1642540005150,0.13311581,3122.5,3121.9,0.80085]
[1642540005353,0.00454739,3122.4,3121.9,0.80085]
[1642540005751,0.00397897,3122.3,3121.9,0.80085]
[1642540006194,0.00341054,3122.2,3121.8,1.243]
[1642540006492,0.128,3122.7,3121.8,1.243]
[1642540006493,0.00284212,3122.1,3121.8,1.243]
[1642540006895,0.0022737,3122.0,3121.8,1.243]
[1642540007299,0.00170527,3121.9,3121.8,1.243]
[1642540010643,0.00170527,3121.9,3121.8,3.593]
[1642540011140,0.00170527,3121.9,3121.8,6.23998118]
[1642540011540,0.00170527,3121.9,3121.8,3.88998118]
[1642540012141,0.00170527,3121.9,3121.8,5.77998118]
[1642540012344,0.00170527,3121.9,3121.8,6.07998118]
[1642540012545,0.128,3122.8,3121.9,5.55]
[1642540012745,0.128,3122.8,3122.1,0.80061]
[1642540013046,0.00454739,3122.7,3122.4,1.33226272]
[1642540013248,0.00454739,3122.7,3122.5,0.128]
[1642540013494,0.00397897,3122.6,3122.5,0.128]
[1642540014699,0.00397897,3122.6,3122.5,1.72921]
[1642540016701,4.06391455,3123.7,3122.6,5.55]
[1642540016903,3.25128624,3123.8,3123.0,0.80055]
[1642540017101,0.00511581,3123.5,3123.1,0.128]
[1642540017348,0.00511581,3123.5,3123.2,2.45921174]
[1642540017550,0.00454739,3123.4,3123.2,0.462]
[1642540017747,0.00454739,3123.4,3122.7,0.128]
[1642540017947,0.13197896,3123.3,3122.6,1.2192]
[1642540018348,0.00341054,3123.2,3122.6,1.2192]
[1642540018749,0.00284211,3123.1,3122.6,1.2192]
[1642540019148,0.00227369,3123.0,3122.7,2.30483735]
[1642540019550,0.00170527,3122.9,3122.7,2.30483735]
[1642540019950,0.00113684,3122.8,3122.7,2.30483735]
[1642540029704,0.00113684,3122.8,3122.7,2.43283735]
[1642540030105,0.00113684,3122.8,3122.7,6.2015343]
[1642540030304,0.00113684,3122.8,3122.7,6.9635343]
[1642540030506,0.00113684,3122.8,3122.7,5.9635343]
[1642540030704,0.00113684,3122.8,3122.7,6.9635343]
[1642540032106,0.128,3123.7,3123.0,0.80035]
[1642540032358,0.128,3124.3,3123.3,5.55]
[1642540032557,0.00454739,3123.6,3123.4,3.07759503]
[1642540032856,0.128,3124.6,3123.5,8.74471614]
[1642540033057,0.128,3124.6,3123.6,0.128]
[1642540033260,0.00795793,3124.2,3123.7,0.80028]
[1642540033459,0.00795793,3124.2,3123.9,0.80027]
[1642540033659,0.00738951,3124.1,3124.0,0.128]
[1642540034259,0.00738951,3124.1,3124.0,1.46057407]
[1642540034465,0.00738951,3124.1,3124.0,4.01057407]
[1642540034659,0.00738951,3124.1,3124.0,3.6834153]
[1642540039746,0.00738951,3124.1,3124.0,6.42406765]
[1642540039947,0.00738951,3124.1,3124.0,7.42406765]
[1642540040957,0.00738951,3124.1,3124.0,4.6834153]
[1642540042156,8.951e-05,3124.1,3124.0,4.6834153]
[1642540042360,1.80452152,3125.6,3124.2,0.03095781]
[1642540042361,0.33211752,3125.6,3124.2,0.03095781]
[1642540042557,0.33211752,3125.6,3124.3,1.26201]
[1642540042757,0.00454739,3124.9,3124.3,2.38921]
[1642540042956,0.00454739,3124.9,3124.4,0.6]
[1642540043157,0.00397896,3124.8,3124.5,2.23882096]
[1642540043356,0.15809648,3125.6,3124.7,5.55]
[1642540043607,0.34402093,3126.2,3125.0,1.18576936]
[1642540043801,0.00397897,3125.5,3125.2,1.53266562]
[1642540044003,0.00738951,3126.1,3125.8,1.16903875]
[1642540044203,0.34402093,3126.2,3125.8,1.16903875]
[1642540044603,0.00738951,3126.1,3125.0,3.7343]
[1642540044804,0.28809,3126.0,3125.0,3.7343]
[1642540045004,0.29491109,3126.0,3125.0,3.7343]
[1642540045204,0.00625266,3125.9,3125.0,3.7343]
[1642540045403,0.1279,3125.8,3125.0,3.7343]
[1642540045604,0.93376424,3125.8,3125.0,3.7343]
[1642540045804,1.99838362,3125.5,3125.0,3.7343]
[1642540046006,0.1279,3125.4,3125.0,3.7343]
[1642540046204,0.00341054,3125.4,3125.0,3.7343]
[1642540046406,1.9002507,3126.0,3125.0,3.7343]
[1642540046407,0.00284212,3125.3,3125.0,3.7343]
[1642540046807,0.0022737,3125.2,3125.0,3.7343]
[1642540047254,0.80017,3125.6,3125.0,3.7343]
[1642540047255,0.00170527,3125.1,3125.0,3.7343]
[1642540047861,0.00170527,3125.1,3124.6,3.83353684]
[1642540048261,0.00113685,3125.0,3124.6,3.83353684]
[1642540048462,0.00113685,3125.0,3124.6,0.00113684]
[1642540048662,1.7288326,3124.9,3124.6,0.00113684]
[1642540048862,2.90105481,3124.8,3124.6,0.00113684]
[1642540049062,0.128,3124.7,3124.1,0.00397896]
[1642540049663,0.128,3124.7,3123.4,3.8894]
[1642540049664,0.80046,3124.3,3124.0,1.11183843]
[1642540049862,1.6009077,3124.3,3124.0,1.11183843]
[1642540050163,1.6009077,3124.3,3124.1,0.00397896]
[1642540051506,0.80046,3124.3,3124.1,0.00397896]
[1642540051906,0.80046,3124.3,3124.0,1.10333001]
[1642540052707,3.11692559,3124.5,3124.0,1.10030001]
[1642540052907,0.800394,3124.5,3124.0,1.10030001]
[1642540053107,0.00170527,3124.4,3124.0,1.10030001]
[1642540053308,0.00170527,3124.4,3124.0,1.09762001]
[1642540053510,0.00113685,3124.3,3124.0,1.09762001]
[1642540053708,0.00113685,3124.3,3124.1,0.128]
[1642540053909,0.00397896,3124.8,3124.1,0.128]
[1642540054209,0.00341054,3124.7,3124.6,2.20881104]
[1642540054607,0.00341054,3124.7,3124.1,7.7961]
[1642540054859,0.00341054,3124.7,3124.1,8.59631]
[1642540055058,0.00284212,3124.6,3124.1,10.19668]
[1642540055355,0.00227369,3124.5,3124.3,0.8002]
[1642540055756,0.00170527,3124.4,3124.3,0.8002]
[1642540056960,0.00170527,3124.4,3124.3,2.95784215]
[1642540057160,0.00170527,3124.4,3124.3,5.61388962]
[1642540058072,0.00170527,3124.4,3124.3,7.07588962]
[1642540058264,0.00170527,3124.4,3124.3,9.82588962]
[1642540058526,0.00170527,3124.4,3124.3,7.33028962]
[1642540058720,0.00170527,3124.4,3124.3,7.32468962]
[1642540058919,0.00170527,3124.4,3124.3,7.62388962]
[1642540059122,0.00170527,3124.4,3124.3,7.50388962]
[1642540061521,0.00170527,3124.4,3124.3,7.62788962]
[1642540061721,0.00170527,3124.4,3124.3,7.32548962]
[1642540061922,0.128,3125.9,3124.5,1.59999]
[1642540062122,0.1279,3126.0,3124.6,8.6394281]
[1642540062354,0.00795793,3125.8,3124.6,9.4394281]
[1642540062659,0.0073895,3125.7,3124.6,4.6394281]
[1642540062853,0.1279,3125.6,3124.6,4.69402266]
[1642540063052,0.13472108,3125.6,3124.6,8.04402266]
[1642540063254,0.3,3125.8,3124.6,8.04402266]
[1642540063255,0.00625266,3125.5,3124.6,8.23104038]
[1642540063458,0.00625266,3125.5,3124.6,8.21185456]
[1642540063658,0.00568423,3125.4,3124.6,5.5573]
[1642540063858,0.00568423,3125.4,3124.6,8.21983393]
[1642540064063,0.00511581,3125.3,3124.6,8.22885217]
[1642540064359,0.00454739,3125.2,3124.6,10.19185909]
[1642540064562,0.00454739,3125.2,3124.6,10.99184909]
[1642540064860,0.00397896,3125.1,3124.6,10.99184909]
[1642540065263,0.00341054,3125.0,3124.6,12.59173369]
[1642540065459,0.00341054,3125.0,3124.6,12.71253369]
[1642540065659,0.128,3126.1,3124.6,12.71253369]
[1642540065660,0.00284212,3124.9,3124.6,12.71173369]
[1642540065861,0.00284212,3124.9,3124.7,5.40081506]
[1642540066099,1.3956548,3125.7,3125.5,1.70852654]
[1642540066300,1.3956548,3125.7,3124.8,7.67707595]
[1642540066502,0.00682108,3125.6,3124.8,7.67707595]
[1642540066801,0.00625266,3125.5,3125.0,0.80008]
[1642540067202,0.00568423,3125.4,3125.0,0.80008]
[1642540067606,0.00511581,3125.3,3125.0,0.80008]
[1642540068007,0.00454739,3125.2,3125.0,0.80008]
[1642540068407,0.1279,3126.6,3125.2,5.6]
[1642540068607,0.1279,3126.6,3125.6,0.79992]
[1642540068809,0.00568423,3126.2,3125.6,0.79992]
[1642540069107,0.1279,3126.6,3125.3,3.8414]
[1642540069108,0.13301581,3126.1,3125.3,3.8414]
[1642540069307,1.16221655,3125.7,3125.3,3.8414]
[1642540069509,0.00454739,3126.0,3125.3,4.64141]
[1642540069764,0.00227369,3125.6,3125.3,4.64141]
[1642540069952,0.00397896,3125.9,3125.3,6.65855306]
[1642540070249,0.00341054,3125.8,3125.4,5.24974]
[1642540070453,0.00341054,3125.8,3125.4,6.04956]
[1642540070654,0.00284211,3125.7,3125.4,6.04956]
[1642540070853,0.00284211,3125.7,3125.5,0.79982]
[1642540071055,1.20239456,3126.1,3125.5,0.79982]
[1642540071056,0.00227369,3125.6,3125.5,0.79982]
[1642540071653,0.00227369,3125.6,3125.5,2.58765154]
[1642540073359,0.00227369,3125.6,3125.5,3.04965154]
[1642540073599,0.00227369,3125.6,3125.5,4.27225154]
[1642540074000,0.00227369,3125.6,3125.5,6.77225154]
[1642540074399,0.1279,3126.5,3125.6,5.6]
[1642540074400,1.15784336,3126.5,3125.6,5.6]
[1642540074599,0.1279,3126.9,3125.8,0.79976]
[1642540074800,0.00454739,3126.4,3125.8,0.79976]
[1642540075201,0.00397897,3126.3,3125.8,0.79976]
[1642540075399,0.00397897,3126.3,3125.6,0.5899]
[1642540075604,0.00341054,3126.2,3126.0,1.59948]
[1642540076003,0.00284212,3126.1,3126.0,1.59948]
[1642540077262,0.00284212,3126.1,3125.7,0.1279]
[1642540077263,0.00284212,3126.1,3125.9,2.04552419]
[1642540077457,0.00284212,3126.1,3125.7,0.1279]
[1642540077458,0.00284212,3126.1,3125.7,0.462]
[1642540077658,1.78683833,3126.4,3125.3,7.928]
[1642540077659,0.0022737,3126.0,3125.3,7.928]
[1642540077859,1.41891162,3125.9,3125.3,7.8001]
[1642540078059,0.00170527,3125.9,3125.4,0.00113685]
[1642540078263,1.33281495,3125.6,3125.4,0.00113685]
[1642540078459,1.33281495,3125.6,3125.5,2.32620577]
[1642540079260,1.31976755,3125.6,3125.4,0.80111685]
[1642540079659,1.31976755,3125.6,3125.4,0.00113685]
[1642540080059,0.00284212,3126.1,3125.2,0.00227369]
[1642540080461,0.16019,3126.6,3125.4,1.59979]
[1642540080462,0.0022737,3126.0,3125.4,1.59979]
[1642540080865,0.00170527,3125.9,3125.4,1.59979]
[1642540081101,1.45733872,3125.7,3125.4,1.59979]
[1642540081302,1.45733872,3125.7,3125.6,2.22860321]
[1642540081705,1.45733872,3125.7,3125.5,0.7999]
[1642540081904,1.45733872,3125.7,3125.2,0.00227369]
[1642540082106,0.00113685,3125.8,3125.2,0.00227369]
[1642540082308,0.00113685,3125.8,3125.3,0.462]
[1642540082507,0.00113685,3125.8,3125.3,0.83300181]
[1642540082707,0.00113685,3125.8,3125.6,1.5]
[1642540082906,0.00113685,3125.8,3125.7,6.1899]
[1642540083309,0.00113685,3125.8,3125.7,8.20318375]
[1642540083710,0.00113685,3125.8,3125.7,9.00285375]
[1642540084612,0.00113685,3125.8,3125.7,10.18385375]
[1642540086181,0.00113685,3125.8,3125.7,15.18385375]
[1642540086580,0.00113685,3125.8,3125.7,16.18385375]
[1642540087078,0.00113685,3125.8,3125.7,15.18385375]
[1642540088608,0.01326012,3125.8,3125.7,15.18385375]
[1642540089508,0.01326012,3125.8,3125.7,16.18385375]
[1642540089713,0.01326012,3125.8,3125.7,15.18385375]
[1642540090311,0.01326012,3125.8,3125.7,16.18385375]
[1642540090511,0.01326012,3125.8,3125.7,16.05595375]
[1642540091313,1.38869947,3126.8,3126.0,0.79972]
[1642540091515,0.13819997,3127.0,3126.2,0.79972]
[1642540091712,0.00511581,3126.7,3126.2,0.79972]
[1642540092111,0.00454739,3126.6,3126.2,0.79972]
[1642540092356,0.00454739,3126.6,3126.3,1.64594993]
[1642540092556,0.00397896,3126.5,3126.4,0.79969]
[1642540093056,0.00397896,3126.5,3126.4,3.43110497]
[1642540093257,0.00397896,3126.5,3126.4,3.89310497]
[1642540093656,0.00397896,3126.5,3126.4,1.26169]
[1642540093857,0.00397896,3126.5,3126.4,3.9278776]
[1642540094858,0.00397896,3126.5,3126.4,4.9278776]
[1642540095761,0.00397896,3126.5,3126.4,5.0557776]
[1642540097221,0.5692662,3127.1,3126.5,5.6]
[1642540097421,0.5692662,3127.1,3126.7,0.79949]
[1642540097623,0.00284212,3127.0,3126.8,0.79945]
[1642540098024,0.5692662,3127.1,3126.8,0.79945]
[1642540098025,0.0022737,3126.9,3126.8,0.79945]
[1642540098224,0.0022737,3126.9,3126.8,3.00751866]
[1642540098623,0.0022737,3126.9,3126.8,3.46951866]
[1642540102157,0.0022737,3126.9,3126.8,6.16900759]
[1642540102656,0.5692662,3127.1,3126.9,6.3993211]
[1642540102857,0.1779,3127.6,3126.9,6.3993211]
[1642540102858,0.05,3127.6,3127.1,0.79932]
[1642540103157,0.00341054,3127.5,3127.2,0.462]
[1642540103355,0.00341054,3127.5,3127.3,2.1170521]
[1642540103605,0.00284211,3127.4,3127.3,2.1170521]
[1642540103805,0.00284211,3127.4,3127.3,2.9163944]
[1642540104408,0.00284211,3127.4,3127.3,2.1170521]
[1642540106309,0.06295914,3127.4,3127.3,2.1170521]
[1642540107459,0.01295914,3127.6,3127.3,2.0170521]
[1642540107656,0.01295914,3127.6,3127.4,0.79947]
[1642540107856,0.01295914,3127.6,3127.3,2.0170521]
[1642540111204,0.01295914,3127.6,3127.4,0.09907192]
[1642540113810,0.01295914,3127.6,3127.5,0.79942]
[1642540114209,0.01409599,3127.6,3127.5,0.79942]
[1642540115877,0.01409599,3127.6,3127.5,0.790525]
[1642540119204,0.01409599,3127.6,3127.5,3.41223878]
[1642540119403,0.01409599,3127.6,3127.5,1.617425]
[1642540119609,0.01409599,3127.6,3127.5,2.617425]
[1642540120208,0.01409599,3127.6,3127.5,2.745225]
[1642540120708,0.01409599,3127.6,3127.5,2.617425]
[1642540121309,1.30577972,3128.1,3127.5,2.617425]
[1642540121509,1.30577972,3128.1,3127.7,0.79938]
[1642540121710,0.00227369,3128.0,3127.7,0.79938]
[1642540121909,0.00227369,3128.0,3127.8,2.19467136]
[1642540122110,0.00170527,3127.9,3127.8,2.19467136]
[1642540124566,1.20748499,3128.1,3127.8,2.19467136]
[1642540124766,1.20748499,3128.1,3127.8,2.99404136]
[1642540125867,1.20748499,3128.1,3127.8,2.19467136]
[1642540126313,1.20748499,3128.1,3127.9,0.09914064]
[1642540126709,0.1278,3128.0,3127.9,0.09914064]
[1642540129406,0.1278,3128.0,3127.2,0.29866064]
[1642540129608,0.1278,3128.0,3127.7,1.82245742]
[1642540130055,1.22010089,3128.1,3127.7,1.82245742]
[1642540130056,1.34790089,3128.1,3127.7,1.82245742]
[1642540130259,1.34790089,3128.1,3127.7,1.77245742]
[1642540130460,1.34790089,3128.1,3127.7,3.27245742]
[1642540131255,0.02289373,3127.9,3127.7,3.27245742]
[1642540131857,0.02289373,3127.9,3127.7,1.5]
[1642540135615,0.02289373,3127.9,3127.7,1.45]
[1642540141307,2.03007269,3128.1,3127.7,1.45]
[1642540141608,1.23050269,3128.1,3127.7,1.45]
[1642540141809,1.53050269,3128.1,3127.7,1.45]
[1642540142610,2.33002489,3128.1,3127.7,1.45]
[1642540143515,1.83782844,3127.8,3127.7,1.45]
[1642540144015,1.83782844,3127.8,3127.7,1.45113685]
[1642540146261,1.86070447,3127.8,3127.7,1.45113685]
[1642540146461,6.91070447,3127.8,3127.7,1.40672778]
[1642540146664,6.91070447,3127.8,3127.7,0.00113685]
[1642540146965,1.86070447,3127.8,3127.7,0.00113685]
[1642540147364,1.86070447,3127.8,3127.2,0.00397896]
[1642540147566,1.40800459,3127.4,3127.2,0.00397896]
[1642540147964,0.02287603,3127.8,3127.2,0.00397896]
[1642540149206,1.34155511,3127.6,3127.2,0.00397896]
[1642540149809,3.58260014,3127.6,3127.2,0.00397896]
[1642540150009,2.24104503,3127.6,3127.2,0.00397896]
[1642540150211,0.02287603,3127.8,3127.2,0.00397896]
[1642540151211,0.02282289,3127.5,3127.2,0.00397896]
[1642540152111,2.09577252,3127.5,3127.2,0.00397896]
[1642540156611,2.09577252,3127.5,3127.3,0.79949]
[1642540157013,2.09577252,3127.5,3127.4,0.00284212]
[1642540157414,2.04577252,3127.5,3127.4,0.00284212]
[1642540158415,1.25099255,3127.9,3127.4,0.00284212]
[1642540158818,0.1278,3128.1,3127.4,0.00284212]
[1642540159218,0.9273219,3128.1,3127.4,0.00284212]
[1642540159419,1.92101467,3128.0,3127.4,0.00284212]
[1642540159858,1.92101467,3128.0,3127.2,0.00397896]
[1642540160058,1.92101467,3128.0,3127.2,0.13177896]
[1642540160257,1.92101467,3128.0,3127.2,2.84780681]
[1642540160861,1.92101467,3128.0,3127.2,0.13177896]
[1642540161059,0.7995651,3127.9,3127.2,0.13177896]
[1642540161260,0.81960597,3127.9,3127.2,0.13177896]
[1642540162365,0.02004087,3127.9,3127.2,0.00397896]
[1642540163168,0.02004087,3127.9,3127.3,2.71598196]
[1642540163614,0.81961087,3127.9,3127.4,0.00284212]
[1642540164515,0.81961087,3127.9,3127.4,0.00197641]
[1642540164714,0.02004087,3127.9,3127.3,0.00254483]
[1642540167765,0.81960717,3127.9,3127.3,0.00254483]
[1642540170769,0.81960717,3127.9,3127.3,0.13034483]
[1642540171206,0.81960717,3127.9,3127.4,0.00197641]
[1642540171607,0.81960717,3127.9,3127.4,2.71795837]
[1642540172015,0.81960717,3127.9,3127.5,0.00140798]
[1642540172513,0.02004087,3127.9,3127.5,0.00140798]
[1642540172713,0.02004087,3127.9,3127.3,2.71598196]
[1642540172714,0.02004087,3127.9,3127.4,0.00197641]
[1642540175364,1.89105554,3128.0,3127.4,0.00197641]
[1642540175762,0.00086571,3127.9,3127.4,0.00197641]
[1642540176365,0.02002316,3127.8,3127.4,0.00197641]
[1642540178908,0.02002316,3127.8,3127.5,0.04793976]
[1642540179109,0.02002316,3127.8,3127.6,0.17703237]
[1642540179309,0.02002316,3127.8,3127.6,0.12863956]
[1642540180312,0.13819997,3128.6,3127.6,0.12863956]
[1642540180313,0.1278,3128.7,3127.8,0.79927]
[1642540180513,0.1278,3128.7,3128.0,0.05868253]
[1642540180712,0.00284212,3128.4,3128.2,0.05000206]
[1642540180914,0.00284212,3128.4,3128.2,0.51200206]
[1642540181113,0.00227369,3128.3,3128.2,0.462]
[1642540181713,0.00227369,3128.3,3127.9,1.1823]
[1642540182013,0.00170527,3128.2,3127.9,1.1823]
[1642540182267,0.80121677,3128.2,3127.9,1.1823]
[1642540182469,0.00113685,3128.1,3127.7,0.00113685]
[1642540182669,1.44052273,3128.1,3127.7,0.00113685]
[1642540182969,2.1889673,3128.0,3127.7,0.00113685]
[1642540183369,2.1889673,3128.0,3127.6,0.00170527]
[1642540183770,0.00113685,3128.1,3127.7,2.71588672]
[1642540184774,0.00113685,3128.1,3127.6,0.00170527]
[1642540184775,0.00113685,3128.1,3127.6,2.71759199]
[1642540185173,0.00113685,3128.1,3127.7,0.00113685]
[1642540185573,0.00113685,3128.1,3127.7,0.12893685]
[1642540186412,0.00113685,3128.1,3127.7,0.00113685]
[1642540186413,2.63523343,3128.1,3127.7,0.00113685]
[1642540186611,0.00113685,3128.1,3127.7,0.00113685]
[1642540186812,0.00113685,3128.1,3127.5,0.00227369]
[1642540187211,2.01601798,3127.7,3127.5,0.00227369]
[1642540187415,2.01601798,3127.7,3127.6,0.79942]
[1642540187612,0.00113685,3128.1,3127.6,0.79942]
[1642540187811,0.00113685,3128.1,3127.6,0.80112527]
[1642540188012,0.00113685,3128.1,3127.7,0.00113685]
[1642540188413,0.00113685,3128.1,3127.8,0.79937]
[1642540189863,0.00113685,3128.1,3128.0,1.7568778]
[1642540190064,0.00113685,3128.1,3128.0,2.5561578]
[1642540193166,0.00113685,3128.1,3128.0,1.7568778]
[1642540194016,0.00113685,3128.1,3128.0,5.15297438]
[1642540194218,0.1278,3129.3,3128.1,5.6]
[1642540194415,1.93623145,3129.5,3128.3,4.8]
[1642540194616,0.00284212,3128.6,3128.4,0.1278]
[1642540194817,0.1278,3129.4,3128.5,6.062]
[1642540195116,1.93623145,3129.5,3129.3,0.79889]
[1642540195421,1.93623145,3129.5,3128.7,1.6662]
[1642540195422,0.00454738,3129.4,3128.7,1.6662]
[1642540195614,0.00454738,3129.4,3128.7,0.312]
[1642540195816,0.00397896,3129.3,3128.8,0.1278]
[1642540196015,0.00397896,3129.3,3128.9,0.79895]
[1642540196215,0.00341054,3129.2,3128.9,0.79895]
[1642540196416,0.50873199,3129.5,3128.9,1.59803]
[1642540196616,0.50873199,3129.5,3129.0,5.7278]
[1642540196819,0.00113684,3129.4,3129.0,5.72893685]
[1642540197017,0.00113684,3129.4,3129.1,1.0]
[1642540197255,0.00113684,3129.4,3129.1,5.22476086]
[1642540197459,0.00113684,3129.4,3129.3,2.97407431]
[1642540198063,0.00113684,3129.4,3129.3,3.97407431]
[1642540198260,0.00113684,3129.4,3129.3,5.57187074]
[1642540198461,0.00113684,3129.4,3129.3,6.03387074]
[1642540198661,6.883e-05,3129.5,3129.4,5.6]
[1642540198863,0.08486883,3130.8,3129.5,5.6]
[1642540199163,0.08486883,3130.8,3130.3,2.16847384]
[1642540199361,0.08486883,3130.8,3129.9,0.462]
[1642540199765,1.17754592,3130.6,3129.9,0.462]
[1642540200265,0.00625266,3130.5,3130.0,0.79879]
[1642540200668,0.00568424,3130.4,3130.0,0.79879]
[1642540201020,0.00511581,3130.3,3130.0,0.79879]
[1642540201309,0.00454739,3130.2,3130.0,0.79879]
[1642540201708,0.00397897,3130.1,3130.0,0.79879]
[1642540202815,0.00397897,3130.1,3129.4,8.4458]
[1642540203017,0.00397897,3130.1,3129.3,7.75]
[1642540203219,0.00341054,3130.0,3129.3,7.75]
[1642540203416,0.00341054,3130.0,3129.4,0.79886]
[1642540203417,1.22786269,3129.9,3129.4,0.79886]
[1642540203619,1.23070481,3129.9,3129.4,0.92666]
[1642540203816,0.0022737,3129.8,3129.4,0.92666]
[1642540204017,0.0022737,3129.8,3129.7,1.88286297]
[1642540204217,1.22786269,3129.9,3129.7,1.88286297]
[1642540204418,0.1278,3130.8,3129.8,0.79885]
[1642540204860,0.00738951,3130.7,3129.8,0.79885]
[1642540205263,0.00682108,3130.6,3129.8,0.79885]
[1642540205466,0.00682108,3130.6,3130.3,0.79868]
[1642540205664,0.00625266,3130.5,3130.3,1.52478]
[1642540206065,0.1277,3131.2,3130.4,2.17313234]
[1642540206466,1.15183197,3130.8,3130.4,2.17313234]
[1642540206866,0.00738951,3130.7,3130.4,2.17313234]
[1642540207266,0.00682108,3130.6,3130.4,2.17313234]
[1642540207668,0.00625266,3130.5,3130.4,2.17313234]
[1642540207967,0.00625266,3130.5,3130.1,1.59736]
[1642540208371,0.00568424,3130.4,3130.0,1.1741]
[1642540208638,0.00568424,3130.4,3130.0,2.77153]
[1642540208825,0.00511581,3130.3,3130.1,1.76046982]
[1642540209027,0.00511581,3130.3,3130.2,0.79872]
[1642540209225,1.15183197,3130.8,3130.2,0.79872]
[1642540209726,2.9063282,3131.6,3130.2,0.79872]
[1642540209727,4.0641078,3132.0,3130.5,1.68883139]
[1642540209927,4.0641078,3132.0,3131.7,0.01238969]
[1642540210125,4.0641078,3132.0,3131.8,0.63635137]
[1642540210126,3.95722467,3132.0,3131.8,0.63635137]
[1642540210528,3.95722467,3132.1,3131.8,0.63635137]
[1642540210932,3.95722467,3132.1,3131.9,1.59635]
[1642540211128,3.95722467,3132.1,3132.0,6.1897]
[1642540211330,3.95722467,3132.1,3132.0,0.5897]
[1642540211531,0.00795793,3132.1,3132.0,3.6897]
[1642540212132,0.00795793,3132.1,3132.0,4.48787]
[1642540212363,0.00795793,3132.1,3132.0,3.6897]
[1642540213369,0.007,3133.1,3132.1,5.6]
[1642540213571,0.007,3133.1,3132.3,1.59613]
[1642540213767,0.007,3133.1,3132.4,2.67110502]
[1642540214168,0.007,3133.1,3132.5,3.7011]
[1642540214368,1.38394001,3132.8,3132.5,3.7011]
[1642540214569,1.38394001,3132.8,3132.4,2.67110502]
[1642540214768,0.00341054,3132.7,3132.4,2.67110502]
[1642540215171,0.00284211,3132.6,3132.4,2.67110502]
[1642540215570,1.38394001,3132.8,3132.4,2.67110502]
[1642540215571,0.00227369,3132.5,3132.4,2.67110502]
[1642540215771,0.00227369,3132.5,3132.4,2.79860502]
[1642540216510,0.00227369,3132.5,3132.4,8.39860502]
[1642540216709,0.00227369,3132.5,3132.4,9.56290502]
[1642540217515,0.00227369,3132.5,3132.4,15.33890502]
[1642540217914,0.00583609,3132.5,3132.4,9.68890502]
[1642540218115,0.02008569,3132.5,3132.4,9.68890502]
[1642540218316,0.02008569,3132.5,3132.4,12.37926051]
[1642540218720,0.02008569,3132.5,3132.4,12.53871051]
[1642540218916,0.02008569,3132.5,3132.4,9.84835502]
[1642540220164,0.02008569,3132.5,3132.4,10.64641502]
[1642540225121,0.007,3133.1,3132.5,0.003488]
[1642540225317,0.0017812,3133.1,3132.8,6.63077094]
[1642540225517,0.0017812,3133.5,3132.8,6.63077094]
[1642540225518,0.0017812,3133.5,3133.0,5.61289398]
[1642540225717,0.0017812,3133.5,3133.2,5.776]
[1642540225916,0.00227369,3133.4,3133.3,5.511]
[1642540226818,0.0017812,3133.5,3133.4,5.6]
[1642540227020,0.79757,3136.6,3133.6,5.6]
[1642540227293,1.11967754,3137.8,3135.2,5.6]
[1642540227483,0.60811656,3138.3,3136.5,5.776]
[1642540227678,0.0017812,3138.8,3136.7,0.01264084]
[1642540227679,0.112156,3137.6,3136.7,0.01264084]
[1642540227878,0.25284,3138.2,3137.0,0.05718366]
[1642540228077,5.08639096,3137.8,3137.7,5.776]
[1642540228278,6.6079887,3138.2,3137.7,5.776]
[1642540228279,6.7201447,3138.2,3137.7,7.1554]
[1642540228478,6.7201447,3138.2,3137.8,5.6]
[1642540228479,2.7691383,3138.2,3137.8,5.6]
[1642540228677,2.7691383,3138.2,3137.7,1.3794]
[1642540228678,2.7691383,3138.2,3138.1,5.78871609]
[1642540228877,2.7691383,3138.2,3138.1,8.35947948]
[1642540229181,1.2260336,3138.2,3138.1,8.35947948]
[1642540229377,1.08730632,3138.2,3138.1,8.35947948]
[1642540229578,8.12277651,3138.7,3138.2,5.6]
[1642540229777,8.12277651,3138.7,3138.4,5.776]
[1642540229977,5.72967369,3138.6,3137.9,0.3573]
[1642540230179,5.72967369,3138.6,3137.0,5.46255]
[1642540230180,5.62967369,3138.6,3138.5,2.14062226]
[1642540230477,0.00170527,3138.5,3138.0,0.00113685]
[1642540230678,1.36333533,3138.4,3138.0,0.00113685]
[1642540230878,1.36333533,3138.4,3137.1,0.00625266]
[1642540230879,2.61246102,3138.3,3137.1,0.00625266]
[1642540231117,1.50738798,3137.2,3137.1,0.00625266]
[1642540231316,0.60234572,3138.2,3137.1,0.00625266]
[1642540231719,0.60234572,3138.2,3136.6,0.1274]
[1642540231917,0.60234572,3138.2,3137.1,0.00625266]
[1642540232117,1.43470449,3137.6,3136.7,0.00852635]
[1642540232316,1.43470449,3137.6,3136.5,0.0096632]
[1642540232517,1.43470449,3137.6,3136.3,0.29962621]
[1642540232518,1.43470449,3137.6,3136.6,0.1275]
[1642540232719,1.43470449,3137.6,3136.5,0.28695]
[1642540232921,0.1275,3138.1,3136.7,0.00852635]
[1642540233121,0.1275,3138.1,3136.6,0.00909478]
[1642540233321,0.1274,3138.3,3136.7,0.1274]
[1642540233722,0.1274,3138.3,3136.8,0.00795793]
[1642540233922,1.41041284,3138.4,3138.0,1.77951463]
[1642540234126,0.00113684,3138.4,3138.0,0.9573]
[1642540234334,1.32946344,3138.3,3138.0,0.9573]
[1642540234525,1.32946344,3138.3,3138.1,0.00170527]